[Event "17th Memorial Lezcano Montalvo 2025"]
[Site "Gran Canaria"]
[Date "2025.04.17"]
[Round "6.24"]
[White "de Leon Navarro, Claudio"]
[Black "Garcia Brion, Eduardo"]
[Result "0-1"]
[Annotator "RC"]
[ECO "B15"]
[WhiteElo "1918"]
[BlackElo "2171"]
[PlyCount "110"]
[EventDate "2025.04.13"]
[EventType "swiss"]
[EventCountry "ESP"]
[SourceTitle "playchess.com"]
[Source "ChessBase"]
[SourceQuality "1"]
[TimeControl "5400+30"]

1. e4 {[%emt 0:13:31]} c6 {[%emt 0:00:16]} 2. Nc3 {[%emt 0:00:14]} d5 {[%emt 0:00:29]} 3. Nf3 {[%emt 0:00:09]} g6 {[%emt 0:00:22]} 4. d4 {[%emt 0:03:40]} Bg7 {[%emt 0:00:15]} 5. h3 {[%emt 0:00:55]} dxe4 {[%emt 0:02:08]} 6. Nxe4 {[%emt 0:01:01]} Nf6 {[%emt 0:00:48]} 7. Ng3 {[%emt 0:02:13]} O-O {[%emt 0:03:08]} 8. Bc4 {[%emt 0:02:14]} Nbd7 {[%emt 0:02:11]} 9. O-O {[%emt 0:00:29]} b5 {[%emt 0:02:50]} 10. Bb3 {[%emt 0:01:01]} c5 {[%emt 0:04:43]} 11. c3 {[%emt 0:02:21]} c4 {[%emt 0:00:59]} 12. Bc2 {[%emt 0:00:07]} Bb7 {[%emt 0:00:46]} 13. a4 {[%emt 0:03:17]} a6 {[%emt 0:01:43]} 14. Re1 {[%emt 0:00:54]} Nd5 {[%emt 0:06:57]} 15. Bd2 {[%emt 0:03:45]} Qb6 {[%emt 0:03:48]} 16. Qc1 {[%emt 0:04:03]} Rfe8 {[%emt 0:00:52]} 17. b4 {[%emt 0:04:46]} cxb3 {[%emt 0:01:14]} 18. Bxb3 {[%emt 0:00:09]} Rac8 {[%emt 0:00:30]} 19. axb5 {[%emt 0:09:14]} axb5 {[%emt 0:00:24]} 20. Qb2 {[%emt 0:02:45]} e6 {[%emt 0:03:00]} 21. Reb1 {[%emt 0:04:43]} Bc6 {[%emt 0:07:22]} 22. Bc2 {[%emt 0:06:07]} Qc7 {[%emt 0:01:04]} 23. Ne2 {[%emt 0:08:33]} e5 {[%emt 0:09:09]} 24. dxe5 {[%emt 0:06:02]} Nxe5 {[%emt 0:00:13]} 25. Nxe5 {[%emt 0:02:47]} Bxe5 {[%emt 0:00:07]} 26. Bd3 {[%emt 0:00:48]} b4 {[%emt 0:05:44]} 27. Qc2 {[%emt 0:04:57]} bxc3 {[%emt 0:02:24]} 28. Nxc3 {[%emt 0:05:51]} Bxc3 {[%emt 0:05:54]} 29. Bxc3 {[%emt 0:00:36]} Bd7 {[%emt 0:00:09]} 30. Rc1 {[%emt 0:01:30]} Qxc3 {[%emt 0:00:31]} 31. Qd1 {[%emt 0:00:26]} Qd4 {[%emt 0:02:36]} 32. Rxc8 {[%emt 0:01:17]} Rxc8 {[%emt 0:00:50]} 33. Ba6 {[%emt 0:00:23]} Qxd1+ {[%emt 0:00:18]} 34. Rxd1 {[%emt 0:00:06]} Rc5 {[%emt 0:00:06]} 35. Bb7 {[%emt 0:00:51]} Be6 {[%emt 0:00:18]} 36. Rd2 {[%emt 0:00:25]} Kg7 {[%emt 0:00:09]} 37. g3 {[%emt 0:00:48]} Nf6 {[%emt 0:01:01]} 38. Kh2 {[%emt 0:01:04]} Rb5 {[%emt 0:00:16]} 39. Bf3 {[%emt 0:00:15]} Ra5 {[%emt 0:00:12]} 40. g4 {[%emt 0:00:29]} Ra2 {[%emt 0:00:12]} 41. Rxa2 {[%emt 0:00:07]} Bxa2 {[%emt 0:00:05]} 42. Be2 {[%emt 0:00:31]} g5 {[%emt 0:01:26]} 43. f3 {[%emt 0:00:17]} Nd5 {[%emt 0:00:09]} 44. Kg3 {[%emt 0:00:20]} Nf4 {[%emt 0:00:13]} 45. Bb5 {[%emt 0:00:32]} Kf6 {[%emt 0:00:16]} 46. h4 {[%emt 0:00:23]} h6 {[%emt 0:00:03]} 47. hxg5+ {[%emt 0:00:27]} hxg5 {[%emt 0:00:04]} 48. Kf2 {[%emt 0:00:20]} Ke5 {[%emt 0:00:04]} 49. Ba4 {[%emt 0:01:08]} Kd4 {[%emt 0:00:21]} 50. Bc2 {[%emt 0:00:54]} Nd3+ {[%emt 0:00:35]} 51. Kg3 {[%emt 0:00:19]} Ke3 {[%emt 0:00:10]} 52. Bxd3 {[%emt 0:01:37]} Kxd3 {[%emt 0:00:04]} 53. f4 {[%emt 0:00:05]} gxf4+ {[%emt 0:00:06]} 54. Kxf4 {[%emt 0:00:06]} Kd4 {[%emt 0:00:08]} 55. Kf5 {[%emt 0:01:15]} Bb1+ {[%emt 0:38:18]} 0-1

[Event "17th Memorial Lezcano Montalvo 2025"]
[Site "Gran Canaria"]
[Date "2025.04.17"]
[Round "6.25"]
[White "Lascar, Radoslawa"]
[Black "Garcia Padron, Juan"]
[Result "0-1"]
[Annotator "RC"]
[ECO "B86"]
[WhiteElo "1897"]
[BlackElo "2155"]
[PlyCount "60"]
[EventDate "2025.04.13"]
[EventType "swiss"]
[EventCountry "ESP"]
[SourceTitle "playchess.com"]
[Source "ChessBase"]
[SourceQuality "1"]
[TimeControl "5400+30"]

1. e4 {[%emt 0:00:42]} c5 {[%emt 0:00:42]} 2. Nf3 {[%emt 0:00:12]} d6 {[%emt 0:00:07]} 3. d4 {[%emt 0:01:15]} cxd4 {[%emt 0:00:14]} 4. Nxd4 {[%emt 0:00:26]} Nf6 {[%emt 0:00:10]} 5. Nc3 {[%emt 0:00:41]} a6 {[%emt 0:01:19]} 6. Bc4 {[%emt 0:03:40]} e6 {[%emt 0:00:32]} 7. g4 {[%emt 0:02:19]} Be7 {[%emt 0:00:24]} 8. Be3 {[%emt 0:02:47]} Nc6 {[%emt 0:05:02]} 9. f3 {[%emt 0:08:46]} d5 {[%emt 0:05:20]} 10. exd5 {[%emt 0:08:56]} Nxd5 {[%emt 0:00:27]} 11. Nxd5 {[%emt 0:03:29]} Bh4+ {[%emt 0:00:15]} 12. Kf1 {[%emt 0:05:10]} exd5 {[%emt 0:00:09]} 13. Be2 {[%emt 0:07:01]} O-O {[%emt 0:00:53]} 14. Qd2 {[%emt 0:12:05]} Ne5 {[%emt 0:13:06]} 15. b3 {[%emt 0:04:05]} Qf6 {[%emt 0:02:22]} 16. Kg2 {[%emt 0:01:53]} h5 {[%emt 0:06:04]} 17. h3 {[%emt 0:02:17]} Bd7 {[%emt 0:00:29]} 18. g5 {[%emt 0:11:43]} Qe7 {[%emt 0:07:24]} 19. f4 {[%emt 0:00:52]} Ng6 {[%emt 0:01:48]} 20. Bf3 {[%emt 0:13:40]} Rae8 {[%emt 0:00:35]} 21. Bf2 {[%emt 0:00:39]} Qd6 {[%emt 0:01:04]} 22. Bxh4 {[%emt 0:01:46]} Nxh4+ {[%emt 0:00:12]} 23. Kf2 {[%emt 0:01:20]} f6 {[%emt 0:02:14]} 24. Bxh5 {[%emt 0:03:42]} Re4 {[%emt 0:00:38]} 25. Ne2 {[%emt 0:01:52]} fxg5 {[%emt 0:00:22]} 26. Bf3 {[%emt 0:00:30]} Rexf4 {[%emt 0:00:25]} 27. Nxf4 {[%emt 0:00:43]} Rxf4 {[%emt 0:00:06]} 28. Raf1 {[%emt 0:01:06]} Nxf3 {[%emt 0:03:13]} 29. Qa5 {[%emt 0:00:45]} Nd2+ {[%emt 0:02:19]} 30. Ke2 {[%emt 0:00:26]} Nxf1 {[%emt 0:00:18]} 0-1

[Event "17th Memorial Lezcano Montalvo 2025"]
[Site "Gran Canaria"]
[Date "2025.04.17"]
[Round "6.26"]
[White "Bethencourt Hernandez, Alberto"]
[Black "Ramirez Maillo, Juan Adonay"]
[Result "1/2-1/2"]
[Annotator "NA RC"]
[ECO "B72"]
[WhiteElo "2122"]
[BlackElo "1956"]
[PlyCount "99"]
[EventDate "2025.04.13"]
[EventType "swiss"]
[EventCountry "ESP"]
[SourceTitle "playchess.com"]
[Source "ChessBase"]
[SourceQuality "1"]
[TimeControl "5400+30"]

1. e4 {[%emt 0:00:10]} c5 {[%emt 0:00:37]} 2. Nf3 {[%emt 0:00:22]} d6 {[%emt 0:00:11]} 3. d4 {[%emt 0:00:22]} cxd4 {[%emt 0:00:05]} 4. Nxd4 {[%emt 0:00:31]} Nf6 {[%emt 0:00:06]} 5. Nc3 {[%emt 0:00:30]} Nc6 {[%emt 0:00:07]} 6. Be2 {[%emt 0:03:22]} g6 {[%emt 0:01:13]} 7. Be3 {[%emt 0:00:34]} Bg7 {[%emt 0:00:12]} 8. Qd2 {[%emt 0:04:13]} O-O {[%emt 0:03:39]} 9. O-O-O {[%emt 0:00:05]} d5 {[%emt 0:04:22]} 10. Nxc6 {[%emt 0:02:42]} bxc6 {[%emt 0:06:50]} 11. exd5 {[%emt 0:00:21]} Nxd5 {[%emt 0:00:19]} 12. Nxd5 {[%emt 0:00:05]} cxd5 {[%emt 0:01:33]} 13. Qxd5 {[%emt 0:01:21]} Qc7 {[%emt 0:01:11]} 14. Qc5 {[%emt 0:02:04]} Qb7 {[%emt 0:00:38]} 15. Qa3 {[%emt 0:28:54]} Rb8 {[%emt 0:07:33]} 16. Bd4 {[%emt 0:03:43]} Bxd4 {[%emt 0:04:53]} 17. Rxd4 {[%emt 0:00:05]} Qxg2 {[%emt 0:00:48]} 18. Qf3 {[%emt 0:03:40]} Qg5+ {[%emt 0:02:04]} 19. Qf4 {[%emt 0:00:51]} Qc5 {[%emt 0:04:45]} 20. Rc4 {[%emt 0:13:18]} Qb6 {[%emt 0:00:25]} 21. Qd4 {[%emt 0:00:23]} Ba6 {[%emt 0:01:22]} 22. Qxb6 {[%emt 0:00:53]} Rxb6 {[%emt 0:00:10]} 23. Re4 {[%emt 0:00:10]} Bb7 {[%emt 0:00:10]} 24. f3 {[%emt 0:01:42]} Bxe4 {[%emt 0:00:06]} 25. fxe4 {[%emt 0:00:04]} Rfb8 {[%emt 0:02:20]} 26. b3 {[%emt 0:00:06]} Rf6 {[%emt 0:01:58]} 27. Kd2 {[%emt 0:04:37]} Rd8+ {[%emt 0:00:27]} 28. Ke3 {[%emt 0:00:16]} e5 {[%emt 0:03:54]} 29. c4 {[%emt 0:01:55]} a5 {[%emt 0:08:31]} 30. Rc1 {[%emt 0:00:37]} Rc6 {[%emt 0:04:45]} 31. a3 {[%emt 0:03:14]} Rb8 {[%emt 0:01:06]} 32. Rb1 {[%emt 0:01:50]} Rcb6 {[%emt 0:01:23]} 33. Bd1 {[%emt 0:00:11]} Kf8 {[%emt 0:00:52]} 34. Kd3 {[%emt 0:01:15]} f5 {[%emt 0:01:56]} 35. Kc3 {[%emt 0:02:02]} fxe4 {[%emt 0:05:33]} 36. b4 {[%emt 0:03:05]} axb4+ {[%emt 0:01:51]} 37. axb4 {[%emt 0:00:04]} e3 {[%emt 0:06:29]} 38. c5 {[%emt 0:01:05]} Rf6 {[%emt 0:00:31]} 39. Be2 {[%emt 0:02:07]} Rf2 {[%emt 0:04:13]} 40. Kd3 {[%emt 0:02:48]} Rxh2 {[%emt 0:00:54]} 41. b5 {[%emt 0:00:29]} Ke7 {[%emt 0:01:38]} 42. b6 {[%emt 0:02:09]} Rxe2 {[%emt 0:09:03]} 43. Kxe2 {[%emt 0:00:09]} Kd7 {[%emt 0:00:07]} 44. Ra1 {[%emt 0:01:20]} Kc6 {[%emt 0:01:18]} 45. Ra5 {[%emt 0:00:12]} h5 {[%emt 0:00:30]} 46. Kxe3 {[%emt 0:01:24]} h4 {[%emt 0:00:54]} 47. Ke4 {[%emt 0:01:05]} Re8 {[%emt 0:05:29]} 48. Ra7 {[%emt 0:01:37]} Kxc5 {[%emt 0:02:21]} 49. b7 {[%emt 0:00:28]} Rb8 {[%emt 0:00:14]} 50. Kxe5 {[%emt 0:11:00]} 1/2-1/2

[Event "17th Memorial Lezcano Montalvo 2025"]
[Site "Gran Canaria"]
[Date "2025.04.17"]
[Round "6.27"]
[White "Alonso Perez, Alfredo"]
[Black "Krilovs, Nikolajs"]
[Result "0-1"]
[Annotator "NA RC"]
[ECO "A40"]
[WhiteElo "1853"]
[BlackElo "2112"]
[PlyCount "108"]
[EventDate "2025.04.13"]
[EventType "swiss"]
[EventCountry "ESP"]
[SourceTitle "playchess.com"]
[Source "ChessBase"]
[SourceQuality "1"]
[TimeControl "5400+30"]

1. d4 {[%emt 0:00:02]} g6 {[%emt 0:00:14]} 2. Nf3 {[%emt 0:00:08]} Bg7 {[%emt 0:00:08]} 3. Bf4 {[%emt 0:01:29]} c5 {[%emt 0:04:03]} 4. c3 {[%emt 0:01:22]} Qb6 {[%emt 0:01:01]} 5. Qb3 {[%emt 0:03:13]} d6 {[%emt 0:01:49]} 6. dxc5 {[%emt 0:07:57]} Qxc5 {[%emt 0:01:06]} 7. Ng5 {[%emt 0:05:59]} Nh6 {[%emt 0:02:08]} 8. Nd2 {[%emt 0:02:14]} O-O {[%emt 0:04:48]} 9. e3 {[%emt 0:05:49]} Nc6 {[%emt 0:05:50]} 10. Be2 {[%emt 0:02:07]} d5 {[%emt 0:02:51]} 11. e4 {[%emt 0:10:13]} d4 {[%emt 0:13:09]} 12. Rc1 {[%emt 0:03:26]} Bg4 {[%emt 0:13:20]} 13. Ndf3 {[%emt 0:14:17]} dxc3 {[%emt 0:02:45]} 14. O-O {[%emt 0:03:25]} Na5 {[%emt 0:02:17]} 15. Qa4 {[%emt 0:00:18]} Nc6 {[%emt 0:06:10]} 16. bxc3 {[%emt 0:03:09]} a6 {[%emt 0:02:24]} 17. h3 {[%emt 0:01:11]} Bd7 {[%emt 0:03:39]} 18. Qb3 {[%emt 0:01:08]} Na5 {[%emt 0:01:13]} 19. Qb4 {[%emt 0:00:55]} Rfc8 {[%emt 0:02:53]} 20. Be3 {[%emt 0:02:36]} Qxb4 {[%emt 0:00:28]} 21. cxb4 {[%emt 0:00:10]} Rxc1 {[%emt 0:00:52]} 22. Rxc1 {[%emt 0:04:23]} Nc6 {[%emt 0:00:06]} 23. Rd1 {[%emt 0:01:23]} Be8 {[%emt 0:01:31]} 24. a3 {[%emt 0:02:28]} Bb2 {[%emt 0:02:14]} 25. Bc1 {[%emt 0:04:48]} Bxc1 {[%emt 0:01:03]} 26. Rxc1 {[%emt 0:00:02]} Kg7 {[%emt 0:00:36]} 27. Nd2 {[%emt 0:02:42]} Nd4 {[%emt 0:01:49]} 28. Bd1 {[%emt 0:00:03]} Bc6 {[%emt 0:01:22]} 29. Ngf3 {[%emt 0:02:19]} Rd8 {[%emt 0:01:01]} 30. Ne5 {[%emt 0:04:21]} Ba4 {[%emt 0:00:07]} 31. Kh1 {[%emt 0:03:20]} Bxd1 {[%emt 0:01:17]} 32. Rxd1 {[%emt 0:00:08]} f6 {[%emt 0:03:41]} 33. Nd3 {[%emt 0:01:53]} Nb5 {[%emt 0:01:59]} 34. Nc4 {[%emt 0:01:59]} Nc3 {[%emt 0:00:56]} 35. Rd2 {[%emt 0:00:56]} Nxe4 {[%emt 0:17:10]} 36. Re2 {[%emt 0:00:28]} Rxd3 {[%emt 0:00:00]} 37. Rxe4 {[%emt 0:00:03]} Kf7 {[%emt 0:00:00]} 38. Re3 {[%emt 0:01:02]} Rd1+ {[%emt 0:00:00]} 39. Kh2 {[%emt 0:00:06]} Nf5 {[%emt 0:00:00]} 40. Rc3 {[%emt 0:00:52]} h5 {[%emt 0:00:00]} 41. g4 {[%emt 0:01:39]} Ng7 {[%emt 0:00:00]} 42. Ne3 {[%emt 0:01:03]} Rd7 {[%emt 0:00:00]} 43. Kg3 {[%emt 0:00:18]} hxg4 {[%emt 0:00:00]} 44. hxg4 {[%emt 0:00:09]} Ne6 {[%emt 0:00:00]} 45. f3 {[%emt 0:01:36]} Nd4 {[%emt 0:00:00]} 46. Kf2 {[%emt 0:00:51]} Nb5 {[%emt 0:00:00]} 47. Rb3 {[%emt 0:00:18]} Rd2+ {[%emt 0:00:00]} 48. Kg3 {[%emt 0:00:11]} Nd4 {[%emt 0:00:00]} 49. Rb1 {[%emt 0:00:49]} Ne2+ {[%emt 0:00:00]} 50. Kh3 {[%emt 0:00:53]} Nf4+ {[%emt 0:00:00]} 51. Kg3 {[%emt 0:00:29]} g5 {[%emt 0:00:00]} 52. Rb3 {[%emt 0:01:43]} b5 {[%emt 0:00:00]} 53. Rb1 {[%emt 0:01:06]} e6 {[%emt 0:00:00]} 54. Ra1 {[%emt 0:00:56]} Re2 {[%emt 0:00:00]} 0-1

[Event "17th Memorial Lezcano Montalvo 2025"]
[Site "Gran Canaria"]
[Date "2025.04.17"]
[Round "6.28"]
[White "Ramirez Maillo, Cristian"]
[Black "Blanco Barros, Juan Carlos"]
[Result "0-1"]
[Annotator "NA RC"]
[ECO "C02"]
[WhiteElo "2106"]
[BlackElo "1941"]
[PlyCount "71"]
[EventDate "2025.04.13"]
[EventType "swiss"]
[EventCountry "ESP"]
[SourceTitle "playchess.com"]
[Source "ChessBase"]
[SourceQuality "1"]
[TimeControl "5400+30"]

1. e4 {[%emt 0:01:25]} e6 {[%emt 0:00:13]} 2. d4 {[%emt 0:00:06]} d5 {[%emt 0:00:11]} 3. e5 {[%emt 0:00:04]} c5 {[%emt 0:00:12]} 4. c3 {[%emt 0:00:08]} Nc6 {[%emt 0:00:07]} 5. Nf3 {[%emt 0:00:06]} Bd7 {[%emt 0:00:28]} 6. Be2 {[%emt 0:00:13]} Nh6 {[%emt 0:00:17]} 7. Bxh6 {[%emt 0:02:26]} gxh6 {[%emt 0:00:11]} 8. O-O {[%emt 0:00:24]} cxd4 {[%emt 0:00:08]} 9. cxd4 {[%emt 0:00:20]} f6 {[%emt 1:33:13]} 10. Bb5 {[%emt 0:01:13]} Bg7 {[%emt 0:00:00]} 11. Re1 {[%emt 0:01:39]} O-O {[%emt 0:00:00]} 12. Bxc6 {[%emt 0:01:29]} Bxc6 {[%emt 0:00:00]} 13. Nbd2 {[%emt 0:00:48]} Be8 {[%emt 0:00:00]} 14. exf6 {[%emt 0:03:39]} Qxf6 {[%emt 0:00:00]} 15. Qe2 {[%emt 0:00:11]} Bf7 {[%emt 0:00:00]} 16. Ne5 {[%emt 0:02:09]} Rfe8 {[%emt 0:00:00]} 17. Qb5 {[%emt 0:07:13]} Re7 {[%emt 0:00:00]} 18. Re3 {[%emt 0:01:39]} Bh5 {[%emt 0:00:00]} 19. Rae1 {[%emt 0:03:34]} Rae8 {[%emt 0:00:00]} 20. Nb3 {[%emt 0:06:08]} Rf8 {[%emt 0:00:00]} 21. f3 {[%emt 0:03:54]} Be8 {[%emt 0:00:00]} 22. Qb4 {[%emt 0:02:11]} h5 {[%emt 0:00:00]} 23. Nc5 {[%emt 0:02:53]} b6 {[%emt 0:00:00]} 24. Ncd3 {[%emt 0:00:07]} Kh8 {[%emt 0:00:00]} 25. Qd6 {[%emt 0:08:12]} Rg8 {[%emt 0:00:00]} 26. f4 {[%emt 0:04:24]} Bf8 {[%emt 0:00:00]} 27. Qd8 {[%emt 0:02:20]} Bh6 {[%emt 0:00:00]} 28. Rg3 {[%emt 0:02:59]} Rf8 {[%emt 0:00:00]} 29. Qd6 {[%emt 0:08:23]} Bb5 {[%emt 0:00:00]} 30. Rf1 {[%emt 0:03:34]} Rc8 {[%emt 0:00:00]} 31. f5 {[%emt 0:03:01]} Bxd3 {[%emt 0:00:00]} 32. Rxd3 {[%emt 0:00:30]} Bf8 {[%emt 0:00:00]} 33. fxe6 {[%emt 0:08:53]} Qxe6 {[%emt 0:00:00]} 34. Nf7+ {[%emt 0:04:24]} Qxf7 {[%emt 0:00:00]} 35. Rxf7 {[%emt 0:00:58]} Rc1+ {[%emt 0:00:00]} 36. Rf1 {[%emt 0:02:48]} 0-1

[Event "17th Memorial Lezcano Montalvo 2025"]
[Site "Gran Canaria"]
[Date "2025.04.17"]
[Round "6.29"]
[White "De La Cruz Perez, Carlos"]
[Black "Halldorsson, Halldor"]
[Result "1/2-1/2"]
[Annotator "NA RC"]
[ECO "D76"]
[WhiteElo "1835"]
[BlackElo "2103"]
[PlyCount "185"]
[EventDate "2025.04.13"]
[EventType "swiss"]
[EventCountry "ESP"]
[SourceTitle "playchess.com"]
[Source "ChessBase"]
[SourceQuality "1"]
[TimeControl "5400+30"]

1. Nf3 {[%emt 0:00:04]} Nf6 {[%emt 0:00:14]} 2. d4 {[%emt 0:00:08]} g6 {[%emt 0:00:31]} 3. c4 {[%emt 0:00:07]} Bg7 {[%emt 0:00:14]} 4. g3 {[%emt 0:00:09]} O-O {[%emt 0:00:23]} 5. Bg2 {[%emt 0:00:06]} d5 {[%emt 0:00:11]} 6. cxd5 {[%emt 0:00:20]} Nxd5 {[%emt 0:00:20]} 7. O-O {[%emt 0:00:14]} Nb6 {[%emt 0:01:31]} 8. Nc3 {[%emt 0:00:30]} Nc6 {[%emt 0:03:03]} 9. e3 {[%emt 0:00:19]} a5 {[%emt 0:01:35]} 10. Re1 {[%emt 0:03:03]} a4 {[%emt 0:00:51]} 11. h3 {[%emt 0:15:46]} Be6 {[%emt 0:03:55]} 12. Kh2 {[%emt 0:14:39]} Qd7 {[%emt 0:05:22]} 13. Ng1 {[%emt 0:02:38]} Bc4 {[%emt 0:04:11]} 14. Nge2 {[%emt 0:07:58]} Rfd8 {[%emt 0:02:05]} 15. Qc2 {[%emt 0:15:45]} e5 {[%emt 0:06:51]} 16. dxe5 {[%emt 0:02:26]} Bd3 {[%emt 0:01:19]} 17. Qd1 {[%emt 0:04:36]} Qf5 {[%emt 0:01:57]} 18. Nf4 {[%emt 0:05:35]} Nxe5 {[%emt 0:01:33]} 19. Nxd3 {[%emt 0:09:40]} Nxd3 {[%emt 0:00:22]} 20. Rf1 {[%emt 0:00:17]} Nxb2 {[%emt 0:01:07]} 21. Qe2 {[%emt 0:00:16]} Bxc3 {[%emt 0:00:34]} 22. Bxb2 {[%emt 0:00:12]} Rd2 {[%emt 0:00:21]} 23. Qe1 {[%emt 0:01:39]} Ba5 {[%emt 0:00:53]} 24. Qb1 {[%emt 0:02:01]} Qc2 {[%emt 0:03:20]} 25. Qxc2 {[%emt 0:01:31]} Rxc2 {[%emt 0:01:03]} 26. Bd4 {[%emt 0:00:24]} c6 {[%emt 0:02:59]} 27. Bxb6 {[%emt 0:00:13]} Bxb6 {[%emt 0:00:12]} 28. Rfb1 {[%emt 0:00:38]} Bc5 {[%emt 0:02:30]} 29. Kg1 {[%emt 0:00:41]} Rd8 {[%emt 0:03:23]} 30. Be4 {[%emt 0:00:07]} Rc4 {[%emt 0:01:09]} 31. Bf3 {[%emt 0:00:29]} Rd7 {[%emt 0:01:04]} 32. Rc1 {[%emt 0:01:11]} Rxc1+ {[%emt 0:00:37]} 33. Rxc1 {[%emt 0:00:06]} Bd6 {[%emt 0:01:37]} 34. Bd1 {[%emt 0:01:54]} Ba3 {[%emt 0:00:49]} 35. Rb1 {[%emt 0:00:04]} b5 {[%emt 0:00:23]} 36. Bf3 {[%emt 0:00:06]} Rc7 {[%emt 0:04:20]} 37. Kf1 {[%emt 0:00:13]} Kf8 {[%emt 0:00:26]} 38. Rd1 {[%emt 0:02:37]} c5 {[%emt 0:02:08]} 39. Be4 {[%emt 0:02:04]} c4 {[%emt 0:02:29]} 40. Rd5 {[%emt 0:03:31]} f5 {[%emt 0:03:09]} 41. Bc2 {[%emt 0:02:04]} b4 {[%emt 0:04:11]} 42. Bxa4 {[%emt 0:00:21]} b3 {[%emt 0:00:09]} 43. axb3 {[%emt 0:01:18]} c3 {[%emt 0:00:07]} 44. b4 {[%emt 0:00:05]} c2 {[%emt 0:00:07]} 45. Bxc2 {[%emt 0:00:13]} Rxc2 {[%emt 0:00:06]} 46. Rd7 {[%emt 0:01:21]} Bxb4 {[%emt 0:00:52]} 47. Rxh7 {[%emt 0:00:09]} Be7 {[%emt 0:01:53]} 48. h4 {[%emt 0:00:47]} Bf6 {[%emt 0:00:29]} 49. Rb7 {[%emt 0:00:39]} Be7 {[%emt 0:00:29]} 50. Kg2 {[%emt 0:01:54]} Kf7 {[%emt 0:36:06]} 51. Kf3 {[%emt 0:00:19]} Ke6 {[%emt 0:00:00]} 52. Rb6+ {[%emt 0:00:13]} Bd6 {[%emt 0:00:00]} 53. Rb7 {[%emt 0:00:07]} Bc7 {[%emt 0:00:00]} 54. g4 {[%emt 0:01:04]} Ba5 {[%emt 0:00:00]} 55. gxf5+ {[%emt 0:00:12]} gxf5 {[%emt 0:00:00]} 56. Rb1 {[%emt 0:00:22]} Kf6 {[%emt 0:00:00]} 57. Kg3 {[%emt 0:02:10]} Rc4 {[%emt 0:00:00]} 58. Ra1 {[%emt 0:01:04]} Bc7+ {[%emt 0:00:00]} 59. Kf3 {[%emt 0:00:45]} Rxh4 {[%emt 0:00:00]} 60. Ra6+ {[%emt 0:00:24]} Ke5 {[%emt 0:00:00]} 61. Rc6 {[%emt 0:00:11]} Bd6 {[%emt 0:00:00]} 62. Ra6 {[%emt 0:00:10]} Kd5 {[%emt 0:06:00]} 63. Ra8 {[%emt 0:00:46]} Rb4 {[%emt 0:00:00]} 64. Ra5+ {[%emt 0:00:38]} Bc5 {[%emt 0:00:00]} 65. Ra8 {[%emt 0:00:08]} Rb2 {[%emt 0:00:00]} 66. Rd8+ {[%emt 0:00:51]} Bd6 {[%emt 0:00:00]} 67. Ra8 {[%emt 0:00:09]} Rc2 {[%emt 0:00:00]} 68. Ra5+ {[%emt 0:00:39]} Bc5 {[%emt 0:00:00]} 69. Ra8 {[%emt 0:00:07]} Bb4 {[%emt 0:00:00]} 70. Ra1 {[%emt 0:00:11]} Kc4 {[%emt 0:04:00]} 71. Rf1 {[%emt 0:00:19]} Kd3 {[%emt 0:00:30]} 72. Rd1+ {[%emt 0:01:14]} Bd2 {[%emt 0:00:00]} 73. Rh1 {[%emt 0:00:35]} Ra2 {[%emt 0:00:00]} 74. Rg1 {[%emt 0:00:20]} Ra4 {[%emt 0:00:00]} 75. Rh1 {[%emt 0:00:47]} Ra8 {[%emt 0:00:00]} 76. Rh4 {[%emt 0:00:31]} Bc3 {[%emt 0:00:00]} 77. Rf4 {[%emt 0:00:24]} Rf8 {[%emt 0:00:00]} 78. Ra4 {[%emt 0:00:06]} Be5 {[%emt 0:00:00]} 79. Ra5 {[%emt 0:00:24]} Bc7 {[%emt 0:00:00]} 80. Rd5+ {[%emt 0:00:42]} Kc4 {[%emt 0:04:30]} 81. Rd1 {[%emt 0:00:27]} Be5 {[%emt 0:00:00]} 82. Rc1+ {[%emt 0:00:12]} Kd5 {[%emt 0:00:00]} 83. Rd1+ {[%emt 0:00:13]} Ke6 {[%emt 0:00:00]} 84. Rh1 {[%emt 0:01:17]} Rf6 {[%emt 0:00:00]} 85. Rb1 {[%emt 0:00:45]} Rh6 {[%emt 0:00:00]} 86. Rb4 {[%emt 0:00:29]} Kf6 {[%emt 0:00:00]} 87. Rb6+ {[%emt 0:00:47]} Kg5 {[%emt 0:00:00]} 88. Rxh6 {[%emt 0:00:40]} Kxh6 {[%emt 0:00:00]} 89. Ke2 {[%emt 0:00:05]} Kh5 {[%emt 0:00:00]} 90. f4 {[%emt 0:00:39]} Bxf4 {[%emt 0:00:00]} 91. exf4 {[%emt 0:00:04]} Kg4 {[%emt 0:00:00]} 92. Ke3 {[%emt 0:00:09]} Kg3 {[%emt 0:00:00]} 93. Ke2 {[%emt 0:00:06]} 1/2-1/2

[Event "17th Memorial Lezcano Montalvo 2025"]
[Site "Gran Canaria"]
[Date "2025.04.17"]
[Round "6.30"]
[White "Blanco Garcia Bajo, David"]
[Black "Garcia Rodriguez, Adriana"]
[Result "1-0"]
[Annotator "NA RC"]
[ECO "B24"]
[WhiteElo "2098"]
[BlackElo "1893"]
[PlyCount "85"]
[EventDate "2025.04.13"]
[EventType "swiss"]
[EventCountry "ESP"]
[SourceTitle "playchess.com"]
[Source "ChessBase"]
[SourceQuality "1"]
[TimeControl "5400+30"]

1. e4 {[%emt 0:00:03]} c5 {[%emt 0:00:33]} 2. Nc3 {[%emt 0:00:06]} e6 {[%emt 0:00:07]} 3. g3 {[%emt 0:00:06]} Be7 {[%emt 0:00:21]} 4. Bg2 {[%emt 0:00:11]} Nc6 {[%emt 0:00:15]} 5. d3 {[%emt 0:00:17]} Nf6 {[%emt 0:00:15]} 6. Nge2 {[%emt 0:00:07]} d6 {[%emt 0:00:57]} 7. O-O {[%emt 0:00:13]} O-O {[%emt 0:00:14]} 8. h3 {[%emt 0:00:44]} a6 {[%emt 0:00:46]} 9. a4 {[%emt 0:00:31]} Rb8 {[%emt 0:00:15]} 10. f4 {[%emt 0:00:09]} Nd7 {[%emt 0:01:54]} 11. g4 {[%emt 0:03:34]} b5 {[%emt 0:07:11]} 12. axb5 {[%emt 0:00:34]} axb5 {[%emt 0:00:06]} 13. Ng3 {[%emt 0:02:23]} b4 {[%emt 0:05:38]} 14. Nce2 {[%emt 0:00:10]} Bb7 {[%emt 0:02:03]} 15. g5 {[%emt 0:04:46]} f6 {[%emt 0:03:28]} 16. h4 {[%emt 1:24:36]} fxg5 {[%emt 0:00:37]} 17. hxg5 {[%emt 0:00:00]} Nb6 {[%emt 0:09:38]} 18. Be3 {[%emt 0:00:00]} d5 {[%emt 0:16:48]} 19. exd5 {[%emt 0:00:00]} Nxd5 {[%emt 0:08:05]} 20. Bd2 {[%emt 0:00:00]} Nb6 {[%emt 0:11:50]} 21. b3 {[%emt 0:00:00]} Nd4 {[%emt 0:07:48]} 22. Ne4 {[%emt 0:00:00]} Nf5 {[%emt 0:01:04]} 23. Qe1 {[%emt 0:00:00]} Nd5 {[%emt 0:01:58]} 24. N2g3 {[%emt 0:00:00]} Qc7 {[%emt 0:01:21]} 25. Nxf5 {[%emt 0:00:00]} exf5 {[%emt 0:00:06]} 26. Ng3 {[%emt 0:00:00]} Kh8 {[%emt 0:01:20]} 27. Ra7 {[%emt 0:00:00]} c4 {[%emt 0:03:56]} 28. dxc4 {[%emt 0:00:00]} Qb6+ {[%emt 0:01:52]} 29. Kh2 {[%emt 0:00:00]} Qxa7 {[%emt 0:00:11]} 30. cxd5 {[%emt 0:00:00]} Qc5 {[%emt 0:01:40]} 31. Nh5 {[%emt 0:00:00]} Rg8 {[%emt 0:03:36]} 32. Be3 {[%emt 0:00:00]} Qb5 {[%emt 0:04:05]} 33. Bd4 {[%emt 0:00:00]} Bf8 {[%emt 0:00:58]} 34. g6 {[%emt 0:00:00]} Qe8 {[%emt 0:01:26]} 35. gxh7 {[%emt 0:01:59]} Qxh5+ {[%emt 0:01:40]} 36. Kg1 {[%emt 0:00:05]} Kxh7 {[%emt 0:00:37]} 37. Rf3 {[%emt 0:00:07]} Bxd5 {[%emt 0:03:40]} 38. Rh3 {[%emt 0:00:09]} Qxh3 {[%emt 0:00:01]} 39. Bxh3 {[%emt 0:00:06]} g6 {[%emt 0:00:58]} 40. Qh4+ {[%emt 0:00:42]} Bh6 {[%emt 0:00:01]} 41. Bf6 {[%emt 0:00:12]} g5 {[%emt 0:01:10]} 42. Bxf5+ {[%emt 0:00:07]} Rg6 {[%emt 0:00:06]} 43. fxg5 {[%emt 0:00:07]} 1-0